bitfinex/quotes_BTCUSD_20240817
["timestamp","ask_amount","ask_price","bid_price","bid_amount"]
[1723854969407,0.24546683,58984.0,58983.0,0.2884464]
[1723854970620,0.24546683,58984.0,58983.0,0.1189064]
[1723854970819,0.24546683,58984.0,58983.0,0.0189064]
[1723854972523,0.24446683,58984.0,58983.0,0.0079064]
[1723854972675,0.24346683,58984.0,58983.0,0.0009064]
[1723854973879,0.31958451,58984.0,58983.0,0.0099064]
[1723854974081,0.49402159,58984.0,58983.0,0.0099064]
[1723854974284,0.49402159,58984.0,58983.0,0.0059064]
[1723854974487,0.24346683,58984.0,58983.0,0.0039064]
[1723854975294,0.3215189,58984.0,58983.0,0.0009064]
[1723854977851,0.24346683,58984.0,58983.0,0.0009064]
[1723854982390,0.29413475,58984.0,58983.0,0.0009064]
[1723854982800,0.24346683,58984.0,58983.0,0.0009064]
[1723854983232,0.29413475,58984.0,58983.0,0.0009064]
[1723854983431,0.24346683,58984.0,58983.0,0.0009064]
[1723854985947,0.01186683,58984.0,58983.0,0.1704464]
[1723854987150,0.00885306,58984.0,58983.0,1.5231864]
[1723854987338,0.00885306,58984.0,58983.0,1.55819139]
[1723854987561,0.000225,58987.0,58986.0,1.42222]
[1723854987763,0.000225,58987.0,58986.0,1.54673915]
[1723854988142,0.000225,58987.0,58986.0,1.54573915]
[1723854988292,0.000225,58987.0,58986.0,1.57872915]
[1723854988948,0.002225,58987.0,58986.0,1.59972915]
[1723854989143,0.002225,58987.0,58986.0,1.58572153]
[1723854989144,0.001225,58987.0,58986.0,1.58572153]
[1723854990195,0.001225,58987.0,58986.0,1.57872153]
[1723854990401,0.000225,58987.0,58986.0,1.55421]
[1723854990607,0.002225,58987.0,58986.0,1.60072153]
[1723854990814,0.001225,58987.0,58986.0,1.58672153]
[1723854991016,0.000225,58987.0,58986.0,1.57872153]
[1723854991217,0.001225,58987.0,58986.0,1.59272153]
[1723854991343,0.000225,58987.0,58986.0,1.55421]
[1723854991746,0.002225,58987.0,58986.0,1.60172153]
[1723854991950,0.002225,58987.0,58986.0,1.56321]
[1723854992136,0.001225,58987.0,58986.0,1.55421]
[1723854992739,0.001225,58987.0,58986.0,1.57872153]
[1723854992939,0.001225,58987.0,58986.0,1.56821]
[1723854993581,0.002225,58987.0,58986.0,1.57621]
[1723854994215,0.002225,58987.0,58986.0,1.93978426]
[1723854994442,0.002225,58987.0,58986.0,1.94077049]
[1723854995684,0.001225,58987.0,58986.0,1.92677049]
[1723854995878,0.001225,58987.0,58986.0,1.93978426]
[1723854996135,0.001225,58987.0,58986.0,1.92615855]
[1723854996340,0.001225,58987.0,58986.0,1.92677049]
[1723854996569,0.001225,58987.0,58986.0,1.93178426]
[1723854996770,0.001225,58987.0,58986.0,1.93215855]
[1723854996973,0.002225,58987.0,58986.0,1.93915855]
[1723854997332,0.002225,58987.0,58986.0,1.93915828]
[1723854997717,0.001225,58987.0,58986.0,1.90764729]
[1723854997922,0.002225,58987.0,58986.0,1.93915831]
[1723854998324,0.002225,58987.0,58986.0,1.93977025]
[1723855001775,0.002225,58987.0,58986.0,1.93878402]
[1723855003123,0.002225,58987.0,58986.0,1.93977025]
[1723855005001,0.002225,58987.0,58986.0,1.93878402]
[1723855005657,0.002225,58987.0,58986.0,1.914273]
[1723855005902,0.002225,58987.0,58986.0,1.93878386]
[1723855008959,0.002225,58987.0,58986.0,1.93915815]
[1723855009375,0.002225,58987.0,58986.0,1.93878368]
[1723855010322,0.002225,58987.0,58986.0,1.93915797]
[1723855010797,0.002225,58987.0,58986.0,1.93976991]
[1723855011156,0.002225,58987.0,58986.0,1.93878368]
[1723855012109,0.002225,58987.0,58986.0,1.93915797]
[1723855012461,0.002225,58987.0,58986.0,1.93878368]
[1723855012664,0.00019979,58992.0,58991.0,1.18860523]
[1723855012877,0.2307,59007.0,59005.0,0.508431]
[1723855013096,0.2307,59007.0,59005.0,1.286339]
[1723855013298,0.0097136,59006.0,59005.0,1.286339]
[1723855013520,0.000825,59006.0,59005.0,1.286339]
[1723855013941,0.000825,59006.0,59005.0,1.285339]
[1723855014525,0.00145071,59006.0,59005.0,1.292339]
[1723855014768,0.00283877,59006.0,59005.0,1.292339]
[1723855015139,0.00283877,59006.0,59005.0,0.107]
[1723855015140,0.41773877,59006.0,59005.0,0.107]
[1723855015354,0.52343877,59006.0,59005.0,0.176477]
[1723855015533,0.53233115,59006.0,59005.0,0.282477]
[1723855016813,0.53233115,59006.0,59005.0,0.29275462]
[1723855019387,0.24343115,59006.0,59005.0,0.29275462]
[1723855019857,0.24343115,59006.0,59005.0,0.63170862]
[1723855020408,0.24343115,59006.0,59005.0,0.29275462]
[1723855020633,0.53233115,59006.0,59005.0,0.013]
[1723855023175,0.53333115,59006.0,59005.0,0.013]
[1723855023399,0.77542649,59006.0,59005.0,0.013]
[1723855023615,1.06375315,59006.0,59005.0,0.007]
[1723855024032,0.03301377,58994.0,58993.0,0.1]
[1723855024284,0.26371377,58994.0,58993.0,0.1]
[1723855024494,0.27257312,58994.0,58993.0,0.1]
[1723855024872,0.27257312,58994.0,58993.0,0.11045755]
[1723855025560,0.27257312,58994.0,58993.0,0.11845755]
[1723855025767,0.27257312,58994.0,58993.0,0.11745755]
[1723855027127,0.27257312,58994.0,58993.0,0.12545755]
[1723855027529,0.03885935,58994.0,58993.0,0.97301455]
[1723855027687,0.03885935,58994.0,58993.0,1.31203755]
[1723855027889,0.03,58994.0,58993.0,1.31203755]
[1723855028926,0.03,58994.0,58993.0,1.31294395]
[1723855031548,0.03062571,58994.0,58993.0,1.31294395]
[1723855032002,0.03,58994.0,58993.0,1.31294395]
[1723855032822,0.03,59001.0,59000.0,0.847457]
[1723855033033,0.03301377,59001.0,59000.0,0.847457]
[1723855033253,0.03,59001.0,59000.0,0.947457]
[1723855033671,0.000825,59006.0,59005.0,0.847385]
[1723855033865,0.000825,59006.0,59005.0,0.947385]
[1723855034002,0.000825,59006.0,59005.0,1.286339]
[1723855034374,0.000825,59006.0,59005.0,1.423239]
[1723855034566,0.000825,59006.0,59005.0,1.44774575]
[1723855034940,0.000825,59006.0,59005.0,1.430239]
[1723855035145,0.000825,59006.0,59005.0,1.429239]
[1723855036008,0.000825,59006.0,59005.0,1.434239]
[1723855036731,0.000825,59006.0,59005.0,1.45874569]
[1723855036878,0.000825,59006.0,59005.0,1.46880008]
[1723855037484,0.000825,59006.0,59005.0,1.44429339]
[1723855037834,0.000825,59006.0,59005.0,1.46880008]
[1723855037982,0.000825,59006.0,59005.0,1.44429339]
[1723855038185,0.000825,59006.0,59005.0,1.46880008]
[1723855038409,0.000825,59006.0,59005.0,1.44429339]
[1723855038585,0.000825,59006.0,59005.0,1.46880008]
[1723855038784,0.000825,59006.0,59005.0,1.44429339]
[1723855039011,0.000825,59006.0,59005.0,1.46880008]
[1723855039413,0.000825,59006.0,59005.0,1.44429339]
[1723855039872,0.000825,59006.0,59005.0,1.46879931]
[1723855040069,0.000825,59006.0,59005.0,1.44429339]
[1723855040279,0.000825,59006.0,59005.0,1.46879931]
[1723855040432,0.000825,59006.0,59005.0,1.78324739]
[1723855040634,0.000825,59006.0,59005.0,1.80775331]
[1723855041078,0.000825,59006.0,59005.0,1.80865971]
[1723855041720,0.000825,59006.0,59005.0,2.42565448]
[1723855041932,0.03,59021.0,59020.0,1.186038]
[1723855042164,0.03,59021.0,59020.0,1.286038]
[1723855042366,0.04028194,59021.0,59020.0,1.286038]
[1723855042519,0.03201377,59021.0,59020.0,1.286038]
[1723855042722,0.03,59021.0,59020.0,1.286038]
[1723855043344,0.2356,59027.0,59020.0,1.286038]
[1723855043345,0.03,59027.0,59026.0,1.185915]
[1723855043577,0.1034,59033.0,59032.0,0.508198]
[1723855043578,0.2656,59033.0,59032.0,0.508198]
[1723855043930,0.27693951,59033.0,59032.0,0.608198]
[1723855044687,0.26861377,59033.0,59032.0,0.946997]
[1723855044869,0.27635881,59033.0,59032.0,0.946997]
[1723855045079,0.27497075,59033.0,59032.0,0.946997]
[1723855045280,0.27497075,59033.0,59032.0,0.955997]
[1723855045642,0.27698452,59033.0,59032.0,0.955997]
[1723855045877,0.27598452,59033.0,59032.0,0.955997]
[1723855046050,0.27535881,59033.0,59032.0,0.962997]
[1723855046271,0.27698452,59033.0,59032.0,0.962997]
[1723855047798,0.27698452,59033.0,59032.0,0.624198]
[1723855048241,0.27698452,59033.0,59032.0,0.962997]
[1723855048649,0.27698452,59033.0,59032.0,0.955997]
[1723855048882,0.27497075,59033.0,59032.0,0.955997]
[1723855049100,0.27698452,59033.0,59032.0,0.960997]
[1723855049480,0.27698452,59033.0,59032.0,0.955997]
[1723855049687,0.27698452,59033.0,59032.0,0.622198]
[1723855049934,0.27698452,59033.0,59032.0,0.960997]
[1723855050141,0.27698452,59033.0,59032.0,0.951997]
[1723855050544,0.27698452,59033.0,59032.0,0.958997]
[1723855050951,0.27698452,59033.0,59032.0,0.620198]
[1723855051158,0.04075881,59033.0,59032.0,0.620198]
[1723855051344,0.04075881,59033.0,59032.0,0.958997]
[1723855051473,0.03937075,59033.0,59032.0,0.958997]
[1723855052036,0.04138452,59033.0,59032.0,0.958997]
[1723855052208,0.03837075,59033.0,59032.0,0.958997]
[1723855052627,0.03919475,59033.0,59032.0,0.958997]
[1723855052836,0.00919475,59033.0,59032.0,1.297796]
[1723855052997,0.000824,59033.0,59032.0,1.297796]
[1723855053399,0.000824,59033.0,59032.0,1.42317029]
[1723855053604,0.000824,59033.0,59032.0,1.59472483]
[1723855053852,0.000824,59033.0,59032.0,2.03343577]
[1723855054204,0.000824,59033.0,59032.0,2.02643577]
[1723855054412,0.000824,59033.0,59032.0,2.02743577]
[1723855054770,0.000824,59033.0,59032.0,2.06542577]
[1723855054945,0.000824,59033.0,59032.0,2.06442577]
[1723855055173,0.000824,59033.0,59032.0,2.07442577]
[1723855055386,0.000824,59033.0,59032.0,2.06642577]
[1723855055813,0.000824,59033.0,59032.0,2.07642577]
[1723855056239,0.000824,59033.0,59032.0,2.06642577]
[1723855056459,0.000824,59033.0,59032.0,2.07042577]
[1723855056912,0.000824,59033.0,59032.0,2.08242577]
[1723855057137,0.000824,59033.0,59032.0,1.9949049]
[1723855057334,0.000824,59033.0,59032.0,2.0089049]
[1723855057760,0.000824,59033.0,59032.0,1.9949049]
[1723855057964,0.000824,59033.0,59032.0,2.0089049]
[1723855058166,0.000824,59033.0,59032.0,1.9949049]
[1723855058323,0.000824,59033.0,59032.0,2.3477039]
[1723855058527,0.000824,59033.0,59032.0,2.0089049]
[1723855059010,0.000824,59033.0,59032.0,1.9949049]
[1723855059401,0.000824,59033.0,59032.0,2.0089049]
[1723855059922,0.000824,59033.0,59032.0,2.00889752]
[1723855060319,0.000824,59033.0,59032.0,1.99489752]
[1723855060545,0.000824,59033.0,59032.0,2.33369652]
[1723855060775,0.000824,59033.0,59032.0,2.31969652]
[1723855061004,0.000824,59033.0,59032.0,2.34769652]
[1723855061689,0.000824,59033.0,59032.0,2.00889752]
[1723855062610,0.000824,59033.0,59032.0,2.37069652]
[1723855062780,0.00825,59041.0,59040.0,2.12341723]
[1723855062947,0.00825,59041.0,59040.0,2.41944352]
[1723855063629,0.00825,59041.0,59040.0,2.41845729]
[1723855063882,0.00825,59041.0,59040.0,2.43245824]
[1723855064106,0.00825,59041.0,59040.0,2.44645824]
[1723855064342,0.00825,59041.0,59040.0,2.42198554]
[1723855064545,0.00825,59041.0,59040.0,2.44683252]
[1723855065011,0.00825,59041.0,59040.0,2.44683308]
[1723855067597,0.00825,59041.0,59040.0,2.44744502]
[1723855067952,0.00825,59041.0,59040.0,2.44683308]
[1723855068133,0.00825,59041.0,59040.0,2.44682921]
[1723855069521,0.00825,59041.0,59040.0,2.44744115]
[1723855069923,0.00825,59041.0,59040.0,2.00740192]
[1723855070153,0.00825,59041.0,59040.0,1.88240192]
[1723855070351,0.00825,59041.0,59040.0,1.71084738]
[1723855070352,0.10845,59041.0,59040.0,1.71084738]
[1723855071761,0.10845,59041.0,59040.0,1.69684738]
[1723855072180,0.10845,59041.0,59040.0,1.7108588]
[1723855072389,0.00825,59041.0,59040.0,1.7108588]
[1723855073179,0.00825,59041.0,59040.0,1.6968588]
[1723855073389,0.00825,59041.0,59040.0,1.7108588]
[1723855073577,0.00825,59041.0,59040.0,1.71123309]
[1723855073958,0.00825,59041.0,59040.0,1.69723309]
[1723855074365,0.00825,59041.0,59040.0,1.71123309]
[1723855074773,0.00825,59041.0,59040.0,1.71184503]
[1723855075146,0.00825,59041.0,59040.0,1.7108588]
[1723855075274,0.00825,59041.0,59040.0,1.72116538]
[1723855076121,0.00825,59041.0,59040.0,1.69668458]
[1723855076317,0.00825,59041.0,59040.0,1.72116148]
[1723855076843,0.00825,59041.0,59040.0,1.7211616]
[1723855077613,0.14385,59041.0,59040.0,1.7211616]
[1723855078667,0.24405,59041.0,59040.0,1.3824086]
[1723855078837,0.2534994,59041.0,59040.0,1.3824086]
[1723855079033,0.2534994,59041.0,59040.0,1.35793158]
[1723855079406,0.2534994,59041.0,59040.0,1.3824086]
[1723855080001,0.2534994,59041.0,59040.0,0.20768258]
[1723855080002,0.25651317,59041.0,59040.0,0.20768258]
[1723855080205,0.25651317,59041.0,59040.0,0.54643558]
[1723855080337,0.25651317,59041.0,59040.0,0.03830658]
[1723855080541,0.45651317,59041.0,59040.0,0.014]
[1723855080742,0.45651317,59041.0,59023.0,0.067889]
[1723855080743,0.2658,59031.0,59030.0,0.508212]
[1723855080943,0.2658,59031.0,59030.0,1.22059021]
[1723855080944,0.26642571,59031.0,59030.0,1.22059021]
[1723855081171,0.2752601,59031.0,59030.0,1.22059021]
[1723855081388,0.2658,59031.0,59030.0,1.22059021]
[1723855081545,0.2752601,59031.0,59030.0,1.22059021]
[1723855081921,0.2752601,59031.0,59030.0,1.19609966]
[1723855082121,0.2752601,59031.0,59030.0,1.32059021]
[1723855082486,0.2658,59031.0,59030.0,1.32059021]
[1723855083855,0.2658,59031.0,59030.0,1.34859021]
[1723855084076,0.26642571,59031.0,59030.0,1.32409966]
[1723855084274,0.26642571,59031.0,59030.0,1.31009966]
[1723855084610,0.26642571,59031.0,59030.0,1.32409966]
[1723855085269,0.26781377,59031.0,59030.0,1.32409966]
[1723855087041,0.26881377,59031.0,59030.0,1.32409966]
[1723855088111,0.26781377,59031.0,59030.0,1.32409966]
[1723855088321,0.26881377,59031.0,59030.0,1.32409966]
[1723855088551,0.26881377,59031.0,59030.0,1.32500496]
[1723855088683,0.26781377,59031.0,59030.0,1.32500496]
[1723855090069,0.26881377,59031.0,59030.0,1.32500496]
[1723855090293,0.2272,59036.0,59030.0,0.13954725]
[1723855090494,0.00825,59041.0,59039.0,0.169379]
[1723855090495,0.1262,59040.0,59039.0,0.169379]
[1723855090652,0.1262,59040.0,59039.0,0.846897]
[1723855090831,0.1262,59040.0,59039.0,0.946897]
[1723855091028,0.1262,59040.0,59039.0,1.285656]
[1723855092446,0.1262,59040.0,59039.0,1.293656]
[1723855093652,0.00825,59041.0,59040.0,0.846882]
[1723855093851,0.00825,59041.0,59040.0,0.946882]
[1723855094031,0.00825,59041.0,59040.0,1.285635]
[1723855094978,0.00825,59041.0,59040.0,1.291635]
[1723855095752,0.02315494,59041.0,59040.0,1.298635]
[1723855099175,0.00825,59041.0,59040.0,1.298635]
[1723855102260,0.00825,59041.0,59040.0,1.32311622]
[1723855102467,0.00825,59041.0,59040.0,1.43991622]
[1723855103323,0.00825,59041.0,59040.0,1.43991431]
[1723855103525,0.00825,59041.0,59040.0,1.45291431]
[1723855103902,0.00825,59041.0,59040.0,1.44691431]
[1723855104135,0.00825,59041.0,59040.0,1.32311431]
[1723855104335,0.00825,59041.0,59040.0,1.33511431]
[1723855105835,0.00825,59041.0,59040.0,1.33511196]
[1723855107296,0.00825,59041.0,59040.0,1.310635]
[1723855107446,0.00825,59041.0,59040.0,1.33511224]
[1723855108671,0.10825,59041.0,59040.0,1.33511224]
[1723855109106,0.1231019,59041.0,59040.0,1.33511224]
[1723855109309,0.10825,59041.0,59040.0,1.33511224]
[1723855111356,0.10825,59041.0,59040.0,1.33511533]
[1723855111790,0.10825,59041.0,59040.0,1.33511531]
[1723855112515,0.23185,59041.0,59040.0,0.99636231]
[1723855112719,0.24832761,59041.0,59040.0,0.971882]
[1723855112925,0.2467019,59041.0,59040.0,0.971882]
[1723855113117,0.24971567,59041.0,59040.0,0.971882]
[1723855113318,0.24908996,59041.0,59040.0,0.971882]
[1723855113528,0.2477019,59041.0,59040.0,0.971882]
[1723855114279,0.2467019,59041.0,59040.0,0.971882]
[1723855114879,0.2477019,59041.0,59040.0,0.971882]
[1723855115257,0.2467019,59041.0,59040.0,0.971882]
[1723855116312,0.2477019,59041.0,59040.0,0.971882]
[1723855116665,0.2477019,59041.0,59040.0,0.99635514]
[1723855117006,0.2467019,59041.0,59040.0,0.99635514]
[1723855117419,0.24908996,59041.0,59040.0,0.99635514]
[1723855117620,0.24971567,59041.0,59040.0,0.99635514]
[1723855117828,0.24908996,59041.0,59040.0,0.99635514]
[1723855117984,0.2477019,59041.0,59040.0,0.99635514]
[1723855118188,0.2467019,59041.0,59040.0,0.99635514]
[1723855118402,0.2477019,59041.0,59040.0,0.99635514]
[1723855119120,0.0231019,59041.0,59040.0,0.99635514]
[1723855119314,0.0231019,59041.0,59040.0,0.99635089]
[1723855119539,0.00825,59041.0,59040.0,1.33510389]
[1723855120400,0.00825,59041.0,59040.0,1.37485389]
[1723855123326,0.00825,59041.0,59040.0,1.310635]
[1723855123523,0.00825,59041.0,59040.0,1.33510469]
[1723855123839,0.00825,59041.0,59040.0,1.310635]
[1723855124039,0.00825,59041.0,59040.0,1.37485703]
[1723855124301,0.00825,59041.0,59040.0,1.33510508]
[1723855124504,0.00825,59041.0,59040.0,1.37485703]
[1723855124804,0.00825,59041.0,59040.0,1.33510508]
[1723855125320,0.00825,59041.0,59040.0,1.37485703]
[1723855126700,0.00825,59041.0,59040.0,1.33510508]
[1723855126925,0.00825,59041.0,59040.0,1.37485703]
[1723855127533,0.00825,59041.0,59040.0,1.33510508]
[1723855127735,0.00825,59041.0,59040.0,1.37485703]
[1723855130700,0.00825,59041.0,59040.0,1.37523132]
[1723855131031,0.00825,59041.0,59040.0,2.6956684]
[1723855131233,0.00652963,59041.0,59040.0,2.7596584]
[1723855131455,0.00825,59042.0,59041.0,1.45609023]
[1723855131661,0.00825,59042.0,59041.0,2.4127288]
[1723855131861,0.00825,59042.0,59041.0,2.7514758]
[1723855132054,0.00825,59042.0,59041.0,2.5994271]
[1723855132255,0.00825,59042.0,59041.0,2.65977496]
[1723855133871,0.00825,59042.0,59041.0,2.68777496]
[1723855134427,0.00825,59042.0,59041.0,2.67278873]
[1723855135235,0.00825,59042.0,59041.0,2.57398234]
[1723855135448,0.00825,59042.0,59041.0,2.59843661]
[1723855135647,0.00825,59042.0,59041.0,2.67278038]
[1723855135845,0.00825,59042.0,59041.0,2.68678042]
[1723855136048,0.00825,59042.0,59041.0,2.67278042]
[1723855136445,0.00825,59042.0,59041.0,1.94097888]
[1723855136669,0.00825,59042.0,59041.0,1.83623884]
[1723855136871,0.00825,59042.0,59041.0,1.73486618]
[1723855137044,0.00825,59042.0,59041.0,1.44809271]
[1723855137843,0.00825,59042.0,59041.0,1.43409271]
[1723855138420,0.00825,59042.0,59041.0,1.38610271]
[1723855138622,0.00825,59042.0,59041.0,1.40010271]
[1723855138848,0.00825,59042.0,59041.0,1.32406827]
[1723855139440,0.00825,59042.0,59041.0,1.31006827]
[1723855139650,0.00825,59042.0,59041.0,1.32406827]
[1723855139853,0.00825,59042.0,59041.0,1.33806827]
[1723855139994,0.00825,59042.0,59041.0,1.31006827]
[1723855140196,0.00825,59042.0,59041.0,1.32406827]
[1723855140818,0.00825,59042.0,59041.0,1.33806827]
[1723855141475,0.00825,59042.0,59041.0,1.32406827]
[1723855141907,0.00825,59042.0,59041.0,1.33806827]
[1723855142113,0.00825,59042.0,59041.0,1.33807898]
[1723855142283,0.00825,59042.0,59041.0,1.31007898]
[1723855142485,0.00825,59042.0,59041.0,1.32407898]
[1723855142713,0.00825,59042.0,59041.0,1.33807898]
[1723855143123,0.00825,59042.0,59041.0,1.66282598]
[1723855143447,0.00825,59042.0,59041.0,1.33807898]
[1723855143656,0.00825,59042.0,59041.0,1.67682598]
[1723855143975,0.00825,59042.0,59041.0,1.33807898]
[1723855144893,0.00825,59042.0,59041.0,2.08486675]
[1723855145093,0.00825,59042.0,59041.0,2.16091316]
[1723855145311,0.00825,59042.0,59041.0,2.53670273]
[1723855146254,0.00825,59042.0,59041.0,2.53669775]
[1723855146656,0.00825,59042.0,59041.0,2.43520511]
[1723855146780,0.00825,59042.0,59041.0,2.45966522]
[1723855147282,0.00825,59042.0,59041.0,2.46003951]
[1723855147446,0.00825,59042.0,59041.0,2.45966522]
[1723855147649,0.00825,59042.0,59041.0,2.46094591]
[1723855147862,0.00825,59042.0,59041.0,2.45957162]
[1723855148067,0.00825,59042.0,59041.0,1.71477008]
[1723855148608,0.00825,59042.0,59041.0,1.33898051]
[1723855150165,0.00825,59042.0,59041.0,1.33898474]
[1723855154442,0.00825,59042.0,59041.0,1.3145204]
[1723855154585,0.03825,59042.0,59041.0,1.33898301]
[1723855154790,0.16397571,59042.0,59041.0,1.33898301]
[1723855155548,0.1788641,59042.0,59041.0,1.33898301]
[1723855156108,0.17803451,59042.0,59041.0,1.33898301]
[1723855158624,0.17803451,59042.0,59041.0,1.33899015]
[1723855159046,0.17803451,59042.0,59041.0,1.3145204]
[1723855159243,0.17803451,59042.0,59041.0,1.33899066]
[1723855160474,0.13314612,59042.0,59041.0,1.33899066]
[1723855162823,0.00804612,59042.0,59041.0,1.33899066]
[1723855163056,0.00804612,59042.0,59041.0,1.8492922]
[1723855163261,0.00804612,59042.0,59041.0,2.50690936]
[1723855163436,0.00804612,59042.0,59041.0,2.6082886]
[1723855163571,0.00804612,59042.0,59041.0,2.50690936]
[1723855163774,0.00825,59046.0,59045.0,1.524258]
[1723855163980,0.00825,59046.0,59045.0,2.45637128]
[1723855164451,0.00825,59046.0,59045.0,2.48170089]
[1723855165009,0.00825,59046.0,59045.0,2.49570089]
[1723855165633,0.00825,59046.0,59045.0,2.50970089]
[1723855166094,0.00825,59046.0,59045.0,2.19960317]
[1723855166259,0.00825,59046.0,59045.0,2.26476541]
[1723855166475,0.00825,59046.0,59045.0,2.36606096]
[1723855166639,0.00825,59046.0,59045.0,2.36507473]
[1723855166839,0.00825,59046.0,59045.0,2.36504675]
[1723855167238,0.2249,59056.0,59052.0,1.185394]
[1723855167614,0.2249,59056.0,59052.0,1.30983606]
[1723855168369,0.2249,59056.0,59055.0,1.185334]
[1723855168568,0.2249,59056.0,59055.0,1.30977606]
[1723855169702,0.2249,59056.0,59055.0,1.31777606]
[1723855170384,0.2249,59056.0,59055.0,1.32577606]
[1723855170598,0.2249,59056.0,59055.0,1.33590503]
[1723855170828,0.2249,59056.0,59055.0,1.31146297]
[1723855170990,0.2249,59056.0,59055.0,1.33590091]
[1723855171206,0.225724,59056.0,59055.0,1.33590091]
[1723855171561,0.225724,59056.0,59055.0,1.33590087]
[1723855174803,0.225724,59056.0,59055.0,1.31146297]
[1723855175011,0.225724,59056.0,59055.0,1.33590194]
[1723855175223,0.225724,59056.0,59055.0,1.33590185]
[1723855175458,0.000824,59056.0,59055.0,1.33590185]
[1723855176793,0.235324,59056.0,59055.0,1.33590185]
[1723855176996,0.235324,59056.0,59055.0,1.31146297]
[1723855178110,0.23594971,59056.0,59055.0,1.31146297]
[1723855178278,0.235324,59056.0,59055.0,1.31146297]
[1723855178504,0.25230771,59056.0,59055.0,1.31146297]
[1723855178867,0.25029394,59056.0,59055.0,1.31146297]
[1723855179073,0.25091965,59056.0,59055.0,1.31146297]
[1723855179668,0.25091965,59056.0,59055.0,1.33590583]
[1723855179873,0.25091965,59056.0,59055.0,1.31146297]
[1723855180182,0.23594971,59056.0,59055.0,1.31146297]
[1723855180387,0.25091965,59056.0,59055.0,1.31146297]
[1723855180784,0.25230771,59056.0,59055.0,1.31146297]
[1723855180991,0.25029394,59056.0,59055.0,1.33590583]
[1723855181201,0.25029394,59056.0,59055.0,1.31146297]
[1723855181405,0.25029394,59056.0,59055.0,1.33590583]
[1723855182225,0.25029394,59056.0,59055.0,1.31146297]
[1723855182465,0.25029394,59056.0,59055.0,1.33590583]
[1723855182688,0.235324,59056.0,59055.0,1.31146297]
[1723855182819,0.236324,59056.0,59055.0,1.31146297]
[1723855183022,0.25029394,59056.0,59055.0,1.31146297]
[1723855183223,0.25129394,59056.0,59055.0,1.31146297]
[1723855183425,0.25029394,59056.0,59055.0,1.31146297]
[1723855183728,0.25029394,59056.0,59055.0,1.33590557]
[1723855183928,0.25029394,59056.0,59055.0,1.31146297]
[1723855184304,0.25129394,59056.0,59055.0,1.31146297]
[1723855185240,0.25029394,59056.0,59055.0,1.33590589]
[1723855185691,0.235324,59056.0,59055.0,1.33590589]
[1723855186552,0.133724,59056.0,59055.0,1.33590589]
[1723855186877,0.000824,59056.0,59055.0,1.33590589]
[1723855188154,0.131224,59056.0,59055.0,1.33590589]
[1723855188387,0.14619394,59056.0,59055.0,1.33590589]
[1723855190627,0.14619394,59056.0,59055.0,0.14044292]
[1723855190628,0.36571965,59056.0,59055.0,0.14044292]
[1723855190851,0.36571965,59056.0,59055.0,0.285333]
[1723855191959,0.36571965,59056.0,59055.0,0.962667]
[1723855192161,0.24561965,59056.0,59055.0,0.962667]
[1723855192363,0.24561965,59056.0,59055.0,1.301334]
[1723855192589,0.24499394,59056.0,59055.0,1.32578041]
[1723855195686,0.24499394,59056.0,59055.0,1.32578261]
[1723855197891,0.01579394,59056.0,59055.0,1.32578261]
[1723855199281,0.01579394,59056.0,59055.0,1.32578155]
[1723855199483,0.01579394,59056.0,59055.0,1.45708155]
[1723855199708,0.000824,59056.0,59055.0,1.45708155]
[1723855202088,0.000824,59056.0,59055.0,1.432634]
[1723855202284,0.000824,59056.0,59055.0,1.45708071]
[1723855203152,0.000824,59056.0,59055.0,1.301334]
[1723855203354,0.000824,59056.0,59055.0,1.32578075]
[1723855206130,0.000824,59056.0,59055.0,1.301334]
[1723855206333,0.000824,59056.0,59055.0,1.32577132]
[1723855206506,0.000824,59056.0,59055.0,1.56187132]
[1723855206707,0.000824,59056.0,59055.0,1.537434]
[1723855206907,0.000824,59056.0,59055.0,1.56187132]
[1723855208313,0.000824,59056.0,59055.0,1.55387132]
[1723855208469,0.000824,59056.0,59055.0,1.59655509]
[1723855208669,0.000824,59056.0,59055.0,1.61055509]
[1723855208988,0.000824,59056.0,59055.0,1.62455509]
[1723855209981,0.000824,59056.0,59055.0,1.66425622]
[1723855210218,0.000824,59056.0,59055.0,1.62455371]
[1723855210439,0.000824,59056.0,59055.0,1.66425256]
[1723855213079,0.000824,59056.0,59055.0,1.95223579]
[1723855213289,0.000824,59056.0,59055.0,2.06533396]
[1723855215989,0.000824,59056.0,59055.0,1.98926944]
[1723855216934,0.000824,59056.0,59055.0,2.09072041]
[1723855217128,0.000824,59056.0,59055.0,1.98927321]
[1723855217564,0.000824,59056.0,59055.0,2.09071734]
[1723855218119,0.000824,59056.0,59055.0,1.98927321]
[1723855218339,0.000824,59056.0,59055.0,1.9251519]
[1723855218527,0.000824,59056.0,59055.0,1.72874107]
[1723855218727,0.000824,59056.0,59055.0,1.75317115]
[1723855218923,0.000824,59056.0,59055.0,1.82925347]
[1723855220662,0.000824,59056.0,59055.0,1.45353557]
[1723855220866,0.000824,59056.0,59055.0,1.4138464]
[1723855221269,0.000824,59056.0,59055.0,1.45353557]
[1723855221443,0.000824,59056.0,59055.0,1.33776408]
[1723855221648,0.000824,59056.0,59055.0,1.37745325]
[1723855222455,0.000824,59056.0,59055.0,1.37746264]
[1723855223498,0.000824,59056.0,59055.0,1.313334]
[1723855223709,0.000824,59056.0,59055.0,1.377462]
[1723855226610,0.000824,59056.0,59055.0,1.37746286]
[1723855227431,0.000824,59056.0,59055.0,2.1174844]
[1723855227607,0.000824,59056.0,59055.0,2.77475583]
[1723855227788,0.00062021,59059.0,59058.0,1.53454929]
[1723855227988,0.00031865,59062.0,59061.0,0.50932229]
[1723855228235,0.00031865,59062.0,59061.0,2.7646425]
[1723855228573,0.00031865,59062.0,59061.0,3.0665864]
[1723855228711,0.000823,59076.0,59075.0,0.00098623]
[1723855228936,0.000823,59076.0,59075.0,1.81725163]
[1723855229150,0.000823,59076.0,59075.0,2.39995239]
[1723855229348,0.000823,59076.0,59075.0,2.97108463]
[1723855229550,0.000823,59076.0,59075.0,3.03138467]
[1723855229982,0.000823,59076.0,59075.0,3.04162197]
[1723855230183,0.000823,59076.0,59075.0,3.01592682]
[1723855230380,0.000823,59076.0,59075.0,2.93119307]
[1723855230583,0.000823,59076.0,59075.0,2.94140618]
[1723855231014,0.000823,59076.0,59075.0,2.95540615]